bitfinex-derivatives/quotes_BNBF0:USTF0_20230901
["timestamp","ask_amount","ask_price","bid_price","bid_amount"]
[1693586253310,0.17155491,214.14,213.66,0.93554502]
[1693586253609,0.17155491,214.14,213.66,0.07569795]
[1693586254209,5.2559927,214.14,213.66,0.07569795]
[1693586254509,5.2559927,214.13,213.67,0.07569795]
[1693586254710,0.17155491,214.12,213.67,0.07569795]
[1693586256408,0.17155491,214.12,213.68,0.07569795]
[1693586257307,5.08443779,214.11,213.7,0.07569795]
[1693586257513,0.17155491,214.1,213.7,0.07569795]
[1693586262815,5.2559927,214.1,213.7,0.07569795]
[1693586263014,0.17155491,214.09,213.7,0.07569795]
[1693586265112,0.17155491,214.09,213.69,0.07569795]
[1693586267219,0.17155491,214.09,213.63,0.15318654]
[1693586267424,0.17155491,214.09,213.69,0.07659327]
[1693586267918,5.2852069,214.09,213.69,0.07659327]
[1693586268113,0.17155491,214.08,213.69,0.07659327]
[1693586271520,0.17155491,214.08,213.68,0.07659327]
[1693586272122,0.17155491,214.08,213.69,0.07659327]
[1693586272323,0.17155491,214.08,213.68,0.07659327]
[1693586272725,5.2852069,214.08,213.68,0.07659327]
[1693586273024,0.17155491,214.07,213.68,0.07659327]
[1693586275225,5.2852069,214.07,213.67,0.07659327]
[1693586275529,0.17155491,214.06,213.67,0.07659327]
[1693586276325,0.17155491,214.06,213.66,0.07659327]
[1693586276729,0.17155491,214.06,213.67,0.07659327]
[1693586279230,5.2852069,214.06,213.67,0.07659327]
[1693586279423,0.17155491,214.05,213.67,0.07659327]
[1693586283239,5.2852069,214.05,213.67,0.07659327]
[1693586283432,0.17155491,214.04,213.67,0.07659327]
[1693586287833,0.17155491,214.05,213.67,0.07659327]
[1693586288038,0.17155491,214.04,213.67,0.07659327]
[1693586288234,0.17155491,214.05,213.67,0.07659327]
[1693586288440,0.17155491,214.04,213.67,0.07659327]
[1693586288739,0.17155491,214.03,213.67,0.07659327]
[1693586288937,0.17155491,214.02,213.67,0.07659327]
[1693586289138,5.2852069,214.05,213.67,0.07659327]
[1693586289339,0.17155491,214.04,213.67,0.07659327]
[1693586290948,0.17155491,214.04,213.66,0.07659327]
[1693586293946,0.17155491,214.04,213.67,0.85961677]
[1693586294244,0.17155491,214.04,213.71,0.07659327]
[1693586294544,0.17155491,214.03,213.71,0.07659327]
[1693586294739,0.17155491,214.13,213.71,0.07659327]
[1693586294943,0.17155491,214.12,213.71,0.07659327]
[1693586295136,0.17155491,214.13,213.71,0.07659327]
[1693586295341,0.17155491,214.12,213.7,0.07659327]
[1693586295541,0.17155491,214.11,213.71,0.8595881]
[1693586295738,0.17155491,214.14,213.71,0.8595881]
[1693586295943,0.17155491,214.13,213.71,0.8595881]
[1693586296143,0.17155491,214.14,213.71,0.8595881]
[1693586296345,0.17155491,214.13,213.71,0.8595881]
[1693586296641,0.17155491,214.12,213.69,0.07659327]
[1693586296854,0.17155491,214.12,213.68,0.07659327]
[1693586297046,0.17155491,214.11,213.69,0.85966375]
[1693586297254,0.17155491,214.14,213.68,0.85966375]
[1693586297446,0.17155491,214.13,213.68,0.85966375]
[1693586297641,0.17155491,214.12,213.68,0.93625702]
[1693586297955,0.17155491,214.11,213.69,0.93625702]
[1693586298149,0.17155491,214.1,213.7,0.85966375]
[1693586298339,0.17155491,214.15,213.7,0.85966375]
[1693586298539,0.17155491,214.14,213.7,0.85966375]
[1693586298746,0.17155491,214.15,213.7,0.85966375]
[1693586298945,0.17155491,214.14,213.7,0.85966375]
[1693586299147,0.17155491,214.13,213.7,0.85966375]
[1693586299348,0.17155491,214.13,213.68,0.07659327]
[1693586299349,0.17155491,214.12,213.71,0.85966375]
[1693586299549,0.17155491,214.15,213.69,0.85966375]
[1693586299755,0.17155491,214.14,213.7,0.85962238]
[1693586299950,0.17155491,214.15,213.69,0.85962238]
[1693586300149,0.17155491,214.14,213.7,0.85962238]
[1693586300351,0.17155491,214.13,213.71,0.85962238]
[1693586300547,0.17155491,214.12,213.68,0.07659327]
[1693586300747,0.17155491,214.16,213.69,0.85961538]
[1693586300948,0.17155491,214.15,213.69,0.85961538]
[1693586301146,0.17155491,214.16,213.69,0.85961538]
[1693586301452,0.17155491,214.15,213.69,0.85961538]
[1693586301653,0.17155491,214.16,213.68,0.85961538]
[1693586301853,0.17155491,214.15,213.69,0.85961538]
[1693586302049,0.17155491,214.16,213.68,0.85961538]
[1693586302251,0.17155491,214.15,213.69,0.85961538]
[1693586302452,0.17155491,214.14,213.7,0.85961538]
[1693586302651,0.17155491,214.16,213.68,0.85961538]
[1693586302849,0.17155491,214.15,213.68,0.85961538]
[1693586303052,0.17155491,214.17,213.68,0.85961538]
[1693586303253,0.17155491,214.16,213.68,0.85961538]
[1693586303453,0.17155491,214.15,213.68,0.85961538]
[1693586303653,0.17155491,214.14,213.68,0.85961538]
[1693586303850,0.17155491,214.13,213.68,0.85961538]
[1693586304054,0.17155491,214.17,213.68,0.85961538]
[1693586304358,0.17155491,214.16,213.68,0.85961538]
[1693586304554,0.17155491,214.15,213.68,0.85961538]
[1693586304752,0.17155491,214.14,213.68,0.85961538]
[1693586304951,0.17155491,214.17,213.68,0.85961538]
[1693586305152,0.17155491,214.16,213.67,0.93620865]
[1693586305357,0.17155491,214.15,213.68,0.85961538]
[1693586305657,0.17155491,214.14,213.68,0.85961538]
[1693586305858,0.17155491,214.17,213.68,0.85961538]
[1693586306057,0.17155491,214.16,213.68,0.85961538]
[1693586306258,0.17155491,214.15,213.68,0.85961538]
[1693586306453,0.17155491,214.14,213.69,0.85961538]
[1693586306655,0.17155491,214.18,213.67,0.85961538]
[1693586306855,0.17155491,214.17,213.68,0.85961538]
[1693586307051,0.17155491,214.16,213.67,0.85961538]
[1693586307260,0.17155491,214.15,213.68,0.85961538]
[1693586307558,0.17155491,214.14,213.69,0.85961538]
[1693586307857,0.17155491,214.13,213.7,0.85961538]
[1693586308058,0.17155491,214.18,213.67,0.85961538]
[1693586308255,0.17155491,214.17,213.68,0.85961538]
[1693586308454,0.17155491,214.16,213.69,0.85961538]
[1693586308654,0.17155491,214.15,213.7,0.85961538]
[1693586308859,0.17155491,214.18,213.67,0.85961538]
[1693586309063,0.17155491,214.17,213.68,0.85961538]
[1693586309257,0.17155491,214.16,213.69,0.85961538]
[1693586309456,5.11365199,214.2,213.67,0.85961538]
[1693586309457,0.17155491,214.15,213.67,0.85961538]
[1693586309659,0.17155491,214.14,213.67,0.85961538]
[1693586309859,0.17155491,214.19,213.67,0.85961538]
[1693586310060,5.11365199,214.2,213.67,0.85961538]
[1693586310061,0.17155491,214.18,213.67,0.85961538]
[1693586310362,0.17155491,214.17,213.67,0.85961538]
[1693586310661,0.17155491,214.16,213.67,0.93620865]
[1693586310861,0.17155491,214.15,213.68,0.85961538]
[1693586311156,0.17155491,214.14,213.68,0.85961538]
[1693586311356,0.17155491,214.19,213.68,0.85961538]
[1693586311560,0.17155491,214.18,213.68,0.85961538]
[1693586311762,0.17155491,214.17,213.68,0.85961538]
[1693586311962,0.17155491,214.2,213.68,0.85961538]
[1693586312161,0.17155491,214.19,213.68,0.85961538]
[1693586312461,0.17155491,214.18,213.68,0.85961538]
[1693586312658,0.17155491,214.2,213.68,0.85961538]
[1693586312857,0.17155491,214.19,213.68,0.85961538]
[1693586313056,0.17155491,214.18,213.68,0.85961538]
[1693586313262,0.17155491,214.17,213.68,0.85961538]
[1693586313461,0.17155491,214.2,213.68,0.85961538]
[1693586313664,0.17155491,214.19,213.68,0.85961538]
[1693586313862,0.17155491,214.2,213.68,0.85961538]
[1693586314064,0.17155491,214.19,213.68,0.85961538]
[1693586314264,0.17155491,214.18,213.68,0.93620865]
[1693586314456,0.17155491,214.17,213.69,0.93620865]
[1693586314656,0.17155491,214.21,213.7,0.85961538]
[1693586314861,0.17155491,214.2,213.7,0.93620865]
[1693586315165,0.17155491,214.19,213.71,0.85961538]
[1693586315362,0.17155491,214.23,213.71,0.85961538]
[1693586315562,0.17155491,214.22,213.71,0.85961538]
[1693586315757,0.17155491,214.23,213.71,0.85961538]
[1693586315957,0.17155491,214.22,213.71,0.85961538]
[1693586316161,0.17155491,214.21,213.71,0.85961538]
[1693586316462,0.17155491,214.2,213.71,0.85961538]
[1693586316656,0.17155491,214.23,213.71,0.85961538]
[1693586316860,0.17155491,214.22,213.71,0.85961538]
[1693586317056,0.17155491,214.23,213.71,0.85961538]
[1693586317562,0.17155491,214.22,213.71,0.85961538]
[1693586317762,0.17155491,214.24,213.71,0.85961538]
[1693586317964,0.17155491,214.23,213.71,0.85961538]
[1693586318158,0.17155491,214.24,213.71,0.85961538]
[1693586318361,0.17155491,214.23,213.74,0.07659327]
[1693586318561,0.17155491,214.22,213.75,0.93620865]
[1693586318764,0.17155491,214.29,213.76,0.93620865]
[1693586319063,0.17155491,214.28,213.77,0.85961538]
[1693586319264,0.17155491,214.3,213.77,0.85961538]
[1693586319466,0.17155491,214.29,213.77,0.85961538]
[1693586319662,0.17155491,214.31,213.76,0.85961538]
[1693586320063,0.17155491,214.3,213.76,0.85961538]
[1693586320263,0.17155491,214.32,213.76,0.85961538]
[1693586320468,0.17155491,214.31,213.76,0.85961538]
[1693586320763,0.17155491,214.3,213.76,0.85961538]
[1693586320964,0.17155491,214.32,213.76,0.85961538]
[1693586321362,0.17155491,214.31,213.76,0.85961538]
[1693586321565,0.17155491,214.33,213.76,0.85961538]
[1693586321764,5.11365199,214.34,213.76,0.85961538]
[1693586321765,0.17155491,214.32,213.76,0.85961538]
[1693586321966,0.17155491,214.33,213.76,0.85961538]
[1693586322167,0.17155491,214.32,213.75,0.85961538]
[1693586322466,0.17155491,214.31,213.76,0.85961538]
[1693586322665,0.17155491,214.3,213.77,0.85961538]
[1693586322861,0.17155491,214.33,213.75,0.85961538]
[1693586323064,0.17155491,214.32,213.76,0.85961538]
[1693586323366,0.17155491,214.31,213.77,0.85961538]
[1693586323568,0.17155491,214.33,213.76,0.85961538]
[1693586323761,0.17155491,214.32,213.77,0.85961538]
[1693586324066,0.17155491,214.31,213.78,0.85961538]
[1693586324260,0.17155491,214.34,213.76,0.85961538]
[1693586324461,0.17155491,214.33,213.77,0.85961538]
[1693586324767,0.17155491,214.32,213.78,0.85961538]
[1693586324969,0.17155491,214.34,213.76,0.85961538]
[1693586325170,0.17155491,214.33,213.77,0.85961538]
[1693586325371,0.17155491,214.34,213.76,0.93620865]
[1693586325564,0.17155491,214.34,213.77,0.85961538]
[1693586326766,0.17155491,214.35,213.77,0.85961538]
[1693586326970,0.17155491,214.34,213.77,0.85961538]
[1693586327169,0.17155491,214.35,213.77,0.85961538]
[1693586327368,0.17155491,214.34,213.77,0.85961538]
[1693586327565,0.17155491,214.33,213.77,0.85961538]
[1693586327764,0.17155491,214.32,213.77,0.85961538]
[1693586327965,0.17155491,214.34,213.77,0.85961538]
[1693586328365,0.17155491,214.34,213.77,0.93620865]
[1693586328572,0.17155491,214.34,213.78,0.85961538]
[1693586330276,0.17155491,214.34,213.78,0.93620865]
[1693586330575,0.17155491,214.33,213.79,0.85961538]
[1693586330874,0.17155491,214.32,213.79,0.85961538]
[1693586331172,0.17155491,214.31,213.79,0.85961538]
[1693586331372,0.17155491,214.3,213.79,0.85961538]
[1693586331572,0.17155491,214.29,213.79,0.85961538]
[1693586331773,0.17155491,214.35,213.79,0.85961538]
[1693586331975,0.17155491,214.34,213.79,0.85961538]
[1693586332272,0.17155491,214.33,213.79,0.85961538]
[1693586332473,0.17155491,214.35,213.79,0.85961538]
[1693586332673,0.17155491,214.34,213.79,0.85961538]
[1693586332973,0.17155491,214.33,213.79,0.85961538]
[1693586333174,0.17155491,214.35,213.79,0.85961538]
[1693586337375,0.17155491,214.35,213.79,0.93620865]
[1693586337571,0.17155491,214.35,213.8,0.85961538]
[1693586338672,5.2852069,214.35,213.8,0.85961538]
[1693586338874,0.17155491,214.34,213.8,0.85961538]
[1693586342079,5.2852069,214.34,213.8,0.85961538]
[1693586342278,0.17155491,214.33,213.8,0.93620865]
[1693586342479,0.17155491,214.33,213.81,0.85961538]
[1693586344282,5.2852069,214.33,213.81,0.85961538]
[1693586344579,0.17155491,214.32,213.81,0.85961538]
[1693586345175,0.17155491,214.33,213.82,0.07659327]
[1693586345378,0.17155491,214.32,213.81,0.07659327]
[1693586345575,0.17155491,214.32,213.82,0.85921551]
[1693586346277,0.17155491,214.32,213.82,0.93580878]
[1693586346478,0.17155491,214.32,213.82,0.07659327]
[1693586347278,0.17155491,214.32,213.81,0.07659327]
[1693586347581,5.2852069,214.32,213.83,0.07659327]
[1693586347776,0.17155491,214.31,213.82,0.07659327]
[1693586348281,0.17155491,214.31,213.83,0.07659327]
[1693586348882,5.2852069,214.31,213.83,0.07659327]
[1693586349081,0.17155491,214.3,213.83,0.07659327]
[1693586350178,5.11365199,214.29,213.84,0.07659327]
[1693586350381,0.17155491,214.28,213.83,0.07659327]
[1693586351579,5.2852069,214.28,213.83,0.07659327]
[1693586351784,0.17155491,214.27,213.83,0.07659327]
[1693586352180,0.17155491,214.27,213.82,0.07659327]
[1693586352787,5.11365199,214.25,213.82,0.07659327]
[1693586353086,0.17155491,214.24,213.82,0.07659327]
[1693586354687,5.11365199,214.23,213.82,0.07659327]
[1693586354888,0.17155491,214.22,213.82,0.07659327]
[1693586355388,0.17155491,214.22,213.81,0.07659327]
[1693586357486,5.2852069,214.22,213.81,0.07659327]
[1693586357681,0.17155491,214.21,213.81,0.07659327]
[1693586359083,0.17155491,214.21,213.8,0.07659327]
[1693586361384,0.17155491,214.21,213.79,0.07659327]
[1693586364591,0.17155491,214.21,213.78,0.07659327]
[1693586365587,5.2852069,214.21,213.78,0.07659327]
[1693586365791,0.17155491,214.2,213.78,0.07659327]
[1693586366493,0.17155491,214.2,213.79,0.93587809]
[1693586366693,0.17155491,214.19,213.79,0.07659327]
[1693586366891,0.17155491,214.21,213.79,0.07659327]
[1693586367099,0.17155491,214.2,213.79,0.07659327]
[1693586367295,0.17155491,214.21,213.79,0.07659327]
[1693586367498,0.17155491,214.2,213.79,0.07659327]
[1693586367694,0.17155491,214.21,213.79,0.07659327]
[1693586367897,5.11365199,214.22,213.79,0.07659327]
[1693586367898,0.17155491,214.2,213.79,0.07659327]
[1693586368093,0.17155491,214.19,213.79,0.07659327]
[1693586368296,0.17155491,214.18,213.79,0.07659327]
[1693586368498,0.17155491,214.21,213.78,0.07659327]
[1693586368693,0.17155491,214.2,213.78,0.07659327]
[1693586371893,0.17155491,214.2,213.77,0.07659327]
[1693586372100,0.17155491,214.2,213.78,0.85933234]
[1693586372293,0.17155491,214.2,213.78,0.93592561]
[1693586372498,0.17155491,214.2,213.78,0.07659327]
[1693586372698,0.17155491,214.2,213.79,0.85928209]
[1693586372897,0.17155491,214.2,213.78,0.07659327]
[1693586375302,0.17155491,214.2,213.79,0.85928178]
[1693586375699,0.17155491,214.2,213.78,0.07659327]
[1693586377903,0.17155491,214.2,213.79,0.93587685]
[1693586378104,0.17155491,214.21,213.79,0.07659327]
[1693586378303,0.17155491,214.19,213.8,0.93584537]
[1693586378501,0.17155491,214.18,213.8,0.07659327]
[1693586378703,0.17155491,214.22,213.8,0.07659327]
[1693586379004,0.17155491,214.21,213.8,0.07659327]
[1693586379201,0.17155491,214.22,213.8,0.07659327]
[1693586379400,0.17155491,214.21,213.8,0.07659327]
[1693586379601,0.17155491,214.2,213.8,0.07659327]
[1693586379800,0.17155491,214.2,213.73,0.15318654]
[1693586379801,0.17155491,214.19,213.79,0.07659327]
[1693586379998,0.17155491,214.21,213.79,0.07659327]
[1693586380202,0.17155491,214.2,213.79,0.07659327]
[1693586380402,0.17155491,214.19,213.79,0.07659327]
[1693586380598,0.17155491,214.21,213.79,0.07659327]
[1693586380802,0.17155491,214.2,213.79,0.07659327]
[1693586381003,0.17155491,214.19,213.79,0.07659327]
[1693586381305,0.17155491,214.18,213.79,0.07659327]
[1693586381500,0.17155491,214.17,213.79,0.07659327]
[1693586381699,0.17155491,214.16,213.79,0.07659327]
[1693586381899,0.17155491,214.21,213.79,0.07659327]
[1693586382105,0.17155491,214.2,213.79,0.07659327]
[1693586382304,0.17155491,214.19,213.79,0.07659327]
[1693586382603,0.17155491,214.18,213.8,0.07659327]
[1693586382906,0.17155491,214.17,213.8,0.07659327]
[1693586383102,5.11365199,214.22,213.8,0.07659327]
[1693586383103,0.17155491,214.16,213.8,0.07659327]
[1693586383303,0.17155491,214.21,213.8,0.07659327]
[1693586383505,0.17155491,214.2,213.8,0.07659327]
[1693586383699,0.17155491,214.19,213.8,0.07659327]
[1693586383903,0.17155491,214.21,213.8,0.07659327]
[1693586384101,0.17155491,214.2,213.8,0.07659327]
[1693586384301,0.17155491,214.19,213.8,0.07659327]
[1693586384498,0.17155491,214.21,213.8,0.07659327]
[1693586384704,0.17155491,214.2,213.8,0.07659327]
[1693586384912,0.17155491,214.19,213.8,0.07659327]
[1693586385109,0.17155491,214.18,213.8,0.07659327]
[1693586385307,0.17155491,214.17,213.8,0.07659327]
[1693586385508,0.17155491,214.21,213.8,0.07659327]
[1693586385704,0.17155491,214.2,213.8,0.07659327]
[1693586386004,0.17155491,214.19,213.8,0.07659327]
[1693586386204,5.11365199,214.22,213.8,0.07659327]
[1693586386205,0.17155491,214.21,213.8,0.07659327]
[1693586386405,0.17155491,214.2,213.8,0.07659327]
[1693586386607,0.17155491,214.19,213.8,0.07659327]
[1693586386808,0.17155491,214.18,213.8,0.07659327]
[1693586387008,0.17155491,214.21,213.8,0.07659327]
[1693586387211,0.17155491,214.2,213.8,0.07659327]
[1693586387410,0.17155491,214.19,213.8,0.07659327]
[1693586387610,0.17155491,214.18,213.8,0.07659327]
[1693586387811,5.2852069,214.21,213.8,0.07659327]
[1693586388111,0.17155491,214.2,213.8,0.07659327]
[1693586390108,0.17155491,214.2,213.79,0.07659327]
[1693586390707,0.17155491,214.2,213.8,0.07659327]
[1693586401517,0.17155491,214.2,213.81,0.07659327]
[1693586404324,5.2852069,214.2,213.81,0.07659327]
[1693586404524,0.17155491,214.19,213.81,0.07659327]
[1693586418533,5.2852069,214.19,213.81,0.07659327]
[1693586418735,0.17155491,214.18,213.81,0.07659327]
[1693586420337,0.17155491,214.18,213.82,0.07659327]
[1693586420533,0.17155491,214.17,213.82,0.07659327]
[1693586420739,0.17155491,214.19,213.82,0.07659327]
[1693586420935,0.17155491,214.18,213.82,0.07659327]
[1693586421135,0.17155491,214.19,213.82,0.07659327]
[1693586421333,0.17155491,214.18,213.82,0.07659327]
[1693586421532,0.17155491,214.17,213.82,0.07659327]
[1693586421734,0.17155491,214.16,213.82,0.07659327]
[1693586421937,0.17155491,214.18,213.82,0.07659327]
[1693586422137,0.17155491,214.17,213.82,0.07659327]
[1693586422339,0.17155491,214.18,213.82,0.07659327]
[1693586422538,0.17155491,214.17,213.82,0.07659327]
[1693586422740,0.17155491,214.16,213.82,0.07659327]
[1693586422937,0.17155491,214.15,213.82,0.07659327]
[1693586423141,0.17155491,214.14,213.82,0.07659327]
[1693586423337,0.17155491,214.18,213.82,0.07659327]
[1693586423542,0.17155491,214.17,213.82,0.07659327]
[1693586423736,0.17155491,214.16,213.82,0.07659327]
[1693586424043,0.17155491,214.15,213.82,0.07659327]
[1693586424238,0.17155491,214.14,213.81,0.07659327]
[1693586424442,0.17155491,214.13,213.81,0.07659327]
[1693586424637,0.17155491,214.12,213.81,0.07659327]
[1693586424841,0.17155491,214.11,213.81,0.07659327]
[1693586425043,0.17155491,214.18,213.82,0.07659327]
[1693586425244,0.17155491,214.17,213.82,0.07659327]
[1693586425545,0.17155491,214.16,213.82,0.07659327]
[1693586425741,0.17155491,214.15,213.82,0.07659327]
[1693586425947,0.17155491,214.18,213.82,0.07659327]
[1693586426143,0.17155491,214.17,213.82,0.07659327]
[1693586426339,0.17155491,214.16,213.82,0.07659327]
[1693586426541,0.17155491,214.15,213.82,0.07659327]
[1693586426740,0.17155491,214.14,213.82,0.07659327]
[1693586426944,0.17155491,214.18,213.82,0.07659327]
[1693586427139,0.17155491,214.17,213.82,0.07659327]
[1693586427341,0.17155491,214.16,213.82,0.07659327]
[1693586427545,0.17155491,214.15,213.82,0.07659327]
[1693586427848,0.17155491,214.14,213.82,0.07659327]
[1693586428048,0.17155491,214.18,213.82,0.07659327]
[1693586428242,0.17155491,214.17,213.82,0.07659327]
[1693586428443,0.17155491,214.16,213.82,0.07659327]
[1693586428642,0.17155491,214.18,213.82,0.07659327]
[1693586428846,0.17155491,214.17,213.82,0.07659327]
[1693586429043,0.17155491,214.18,213.82,0.07659327]
[1693586429243,0.17155491,214.17,213.82,0.07659327]
[1693586429448,0.17155491,214.18,213.82,0.07659327]
[1693586429649,5.11365199,214.19,213.81,0.07659327]
[1693586429650,0.17155491,214.17,213.81,0.07659327]
[1693586429848,0.17155491,214.16,213.81,0.07659327]
[1693586430050,5.11365199,214.15,213.75,0.07659327]
[1693586430252,0.17155491,214.14,213.75,0.07659327]
[1693586430848,0.17155491,214.14,213.72,0.07659327]
[1693586431551,0.17155491,214.14,213.73,0.8595619]
[1693586431751,0.17155491,214.14,213.71,0.07659327]
[1693586431950,0.17155491,214.14,213.72,0.85956209]
[1693586433052,0.17155491,214.13,213.72,0.85956209]
[1693586433252,0.17155491,214.16,213.72,0.85956209]
[1693586433453,0.17155491,214.15,213.72,0.85956209]
[1693586433653,0.17155491,214.14,213.72,0.85956209]
[1693586433853,0.17155491,214.13,213.72,0.85956209]
[1693586434053,0.17155491,214.17,213.71,0.85956209]
[1693586434255,0.17155491,214.16,213.72,0.85956209]
[1693586434455,0.17155491,214.15,213.73,0.85956209]
[1693586434656,0.17155491,214.17,213.71,0.85956209]
[1693586434954,0.17155491,214.16,213.72,0.85956327]
[1693586435156,0.17155491,214.15,213.73,0.85956327]
[1693586435350,0.17155491,214.17,213.7,0.85956327]
[1693586435552,0.17155491,214.16,213.71,0.85956348]
[1693586435753,0.17155491,214.15,213.72,0.85956348]
[1693586435948,0.17155491,214.17,213.7,0.85956348]
[1693586436253,0.17155491,214.16,213.71,0.85956365]
[1693586436450,0.17155491,214.17,213.7,0.85956365]
[1693586436655,0.17155491,214.16,213.71,0.85956365]
[1693586436850,0.17155491,214.15,213.72,0.85956365]
[1693586437052,0.17155491,214.18,213.7,0.85956365]
[1693586437252,0.17155491,214.17,213.71,0.85956722]
[1693586437449,0.17155491,214.16,213.72,0.85956722]
[1693586437653,0.17155491,214.15,213.68,0.07659327]
[1693586437855,0.17155491,214.14,213.69,0.85957681]
[1693586438157,0.17155491,214.13,213.69,0.85957681]
[1693586438357,0.17155491,214.12,213.69,0.85957681]
[1693586438655,0.17155491,214.11,213.69,0.85957681]
[1693586438850,0.17155491,214.1,213.68,0.85957681]
[1693586439052,0.17155491,214.09,213.69,0.85957681]
[1693586439255,0.17155491,214.18,213.68,0.85957681]
[1693586439456,0.17155491,214.17,213.69,0.85957681]
[1693586439658,0.17155491,214.16,213.7,0.85957681]
[1693586439850,0.17155491,214.15,213.71,0.85957681]
[1693586440051,0.17155491,214.19,213.68,0.85957681]
[1693586440256,0.17155491,214.18,213.69,0.85957681]
[1693586440559,0.17155491,214.17,213.7,0.85957681]
[1693586440759,0.17155491,214.16,213.71,0.85957681]
[1693586440960,0.17155491,214.15,213.72,0.85957681]
[1693586441160,0.17155491,214.14,213.67,0.07659327]
[1693586441361,0.17155491,214.13,213.68,0.85958038]
[1693586441560,0.17155491,214.19,213.68,0.85958038]
[1693586441761,0.17155491,214.18,213.68,0.85958038]
[1693586441962,0.17155491,214.2,213.68,0.85958038]
[1693586442260,0.17155491,214.19,213.68,0.85958038]
[1693586442456,0.17155491,214.18,213.68,0.85958038]
[1693586442657,0.17155491,214.18,213.65,0.07659327]
[1693586442658,0.17155491,214.17,213.69,0.85958038]
[1693586442859,0.17155491,214.16,213.7,0.85958038]
[1693586443054,0.17155491,214.15,213.71,0.85958038]
[1693586443261,0.17155491,214.14,213.66,0.07659327]
[1693586443465,0.17155491,214.2,213.67,0.85960056]
[1693586443762,0.17155491,214.19,213.67,0.85960056]
[1693586443963,0.17155491,214.18,213.67,0.85960056]
[1693586444157,0.17155491,214.17,213.67,0.85960056]
[1693586444362,0.17155491,214.16,213.67,0.85960056]
[1693586444557,0.17155491,214.15,213.67,0.85960056]
[1693586444762,0.17155491,214.14,213.67,0.93619383]
[1693586445059,0.17155491,214.13,213.68,0.85960056]
[1693586445263,0.17155491,214.12,213.68,0.85960056]
[1693586445464,0.17155491,214.11,213.68,0.85960056]
[1693586445662,0.17155491,214.1,213.68,0.85960056]
[1693586445862,0.17155491,214.09,213.68,0.85960056]
[1693586446064,0.17155491,214.08,213.68,0.85960056]
[1693586446263,0.17155491,214.07,213.68,0.85960056]
[1693586446459,0.17155491,214.22,213.68,0.85960056]
[1693586446662,0.17155491,214.21,213.68,0.85960056]
[1693586446861,0.17155491,214.22,213.68,0.85960056]
[1693586447063,0.17155491,214.21,213.68,0.85960056]
[1693586447265,0.17155491,214.2,213.68,0.85960056]
[1693586447464,0.17155491,214.19,213.68,0.85960056]
[1693586447666,0.17155491,214.22,213.68,0.85960056]
[1693586447861,0.17155491,214.21,213.68,0.85960056]
[1693586448065,0.17155491,214.2,213.68,0.85960056]
[1693586448265,0.17155491,214.19,213.68,0.85960056]
[1693586448460,0.17155491,214.18,213.68,0.85960056]
[1693586448666,0.17155491,214.17,213.68,0.85960056]
[1693586448859,0.17155491,214.16,213.68,0.85960056]
[1693586449063,0.17155491,214.22,213.68,0.85960056]
[1693586449266,0.17155491,214.21,213.68,0.85960056]
[1693586449467,0.17155491,214.22,213.68,0.85960056]
[1693586449666,0.17155491,214.21,213.68,0.85960056]
[1693586449861,0.17155491,214.22,213.68,0.85960056]
[1693586450059,0.17155491,214.21,213.68,0.85960056]
[1693586450261,0.17155491,214.2,213.68,0.85960056]
[1693586450465,0.17155491,214.19,213.68,0.85960056]
[1693586450668,0.17155491,214.22,213.68,0.85960056]
[1693586450866,0.17155491,214.21,213.68,0.85960056]
[1693586451068,0.17155491,214.2,213.68,0.85960056]
[1693586451269,0.17155491,214.19,213.68,0.85960056]
[1693586451469,0.17155491,214.23,213.68,0.85960056]
[1693586451967,0.17155491,214.23,213.68,0.93619383]
[1693586452165,0.17155491,214.23,213.69,0.85960056]
[1693586452969,0.17155491,214.23,213.7,0.85960056]
[1693586453167,0.17155491,214.23,213.67,0.07659327]
[1693586453168,0.17155491,214.23,213.71,0.85960056]
[1693586453365,0.17155491,214.23,213.72,0.85960056]
[1693586453563,0.17155491,214.23,213.67,0.07659327]
[1693586453767,0.17155491,214.23,213.68,0.85958866]
[1693586454169,5.2852069,214.23,213.68,0.85958866]
[1693586454467,0.17155491,214.22,213.68,0.85958866]
[1693586454968,0.17155491,214.22,213.68,0.93618193]
[1693586455165,0.17155491,214.22,213.69,0.85958866]
[1693586457870,0.17155491,214.22,213.7,0.85958866]
[1693586458172,0.17155491,214.22,213.71,0.85958866]
[1693586458474,5.2852069,214.22,213.68,0.07659327]
[1693586458675,5.2852069,214.21,213.69,0.85963292]
[1693586458973,0.17155491,214.2,213.69,0.85963292]
[1693586460669,0.17155491,214.2,213.69,0.93622619]
[1693586460870,0.17155491,214.2,213.7,0.85963292]
[1693586461673,0.17155491,214.2,213.7,0.93622619]
[1693586461871,0.17155491,214.2,213.71,0.85963292]
[1693586462070,0.17155491,214.2,213.7,0.85963292]
[1693586462379,0.17155491,214.2,213.71,0.85964079]
[1693586462574,0.17155491,214.2,213.69,0.07659327]
[1693586462979,5.11365199,214.14,213.65,0.07659327]
[1693586463179,0.17155491,214.13,213.66,0.85989124]
[1693586463774,0.17155491,214.13,213.66,0.07659327]
[1693586463977,0.17155491,214.13,213.65,0.07659327]
[1693586464278,0.17155491,214.13,213.66,0.85989548]
[1693586464975,0.17155491,214.13,213.66,0.93648875]
[1693586465178,0.17155491,214.13,213.66,0.07659327]